[Event "Late-Titled-Tuesday-Blitz-April-16-2024"]
[Site "Chess.com"]
[Date "2024.04.16"]
[Round "3"]
[White "jup1978"]
[Black "Tolyanius"]
[Result "1-0"]
[WhiteElo "2444"]
[BlackElo "2616"]
[TimeControl "180+1"]
[EndTime "14:26:30 PDT"]
[Termination "jup1978 won by resignation"]

1. d4 {[%clk 0:03:00.9]} 1... Nf6 {[%clk 0:03:00]} 2. Nf3 {[%clk 0:03:01]} 2...
c5 {[%clk 0:03:00.8]} 3. g3 {[%clk 0:03:00.1]} 3... cxd4 {[%clk 0:03:00.2]} 4.
Nxd4 {[%clk 0:03:01]} 4... e5 {[%clk 0:03:00.8]} 5. Nb3 {[%clk 0:03:00.3]} 5...
d5 {[%clk 0:02:59]} 6. Bg2 {[%clk 0:02:57.2]} 6... h6 {[%clk 0:02:59.4]} 7. O-O
{[%clk 0:02:57.4]} 7... Nc6 {[%clk 0:02:58.5]} 8. Nc3 {[%clk 0:02:54.7]} 8...
Be6 {[%clk 0:02:58.4]} 9. Na4 {[%clk 0:02:48.2]} 9... Rc8 {[%clk 0:02:30.6]} 10.
Nac5 {[%clk 0:02:44]} 10... Bxc5 {[%clk 0:02:30.2]} 11. Nxc5 {[%clk 0:02:44.9]}
11... O-O {[%clk 0:02:30.6]} 12. Nxe6 {[%clk 0:02:39.4]} 12... fxe6 {[%clk
0:02:30.7]} 13. c4 {[%clk 0:02:37.9]} 13... Nd4 {[%clk 0:02:18.7]} 14. e3 {[%clk
0:02:30.9]} 14... Nf5 {[%clk 0:02:14]} 15. cxd5 {[%clk 0:02:29.9]} 15... exd5
{[%clk 0:02:14.1]} 16. b3 {[%clk 0:02:28.6]} 16... Rc7 {[%clk 0:01:52.9]} 17.
Bb2 {[%clk 0:02:26.4]} 17... d4 {[%clk 0:01:49.8]} 18. exd4 {[%clk 0:02:22.8]}
18... Nxd4 {[%clk 0:01:49.5]} 19. Re1 {[%clk 0:02:18.1]} 19... Nc2 {[%clk
0:01:39.8]} 20. Bxe5 {[%clk 0:02:13]} 20... Nxe1 {[%clk 0:01:03.9]} 21. Bxc7
{[%clk 0:02:06.6]} 21... Qxc7 {[%clk 0:00:55.4]} 22. Qxe1 {[%clk 0:02:05.2]}
22... Ng4 {[%clk 0:00:56.1]} 23. Qe6+ {[%clk 0:02:03.6]} 23... Qf7 {[%clk
0:00:50.7]} 24. Qxg4 {[%clk 0:01:53.9]} 24... Qxf2+ {[%clk 0:00:50.5]} 25. Kh1
{[%clk 0:01:53.4]} 25... Re8 {[%clk 0:00:50.2]} 26. Qc4+ {[%clk 0:01:40.2]}
26... Kh8 {[%clk 0:00:49.1]} 27. Rf1 {[%clk 0:01:37.5]} 27... Qxa2 {[%clk
0:00:35]} 28. Bxb7 {[%clk 0:01:35.9]} 28... a5 {[%clk 0:00:31.9]} 29. Bc6 {[%clk
0:01:33.8]} 29... Rd8 {[%clk 0:00:31.2]} 30. Be4 {[%clk 0:01:28.5]} 30... Qd2
{[%clk 0:00:31.7]} 31. Qf7 {[%clk 0:01:25]} 31... Qe2 {[%clk 0:00:18.3]} 32.
Qf8+ {[%clk 0:01:23.1]} 1-0

[Event "Late-Titled-Tuesday-Blitz-April-16-2024"]
[Site "Chess.com"]
[Date "2024.04.16"]
[Round "3"]
[White "kalxandria"]
[Black "StellarChess"]
[Result "0-1"]
[WhiteElo "2224"]
[BlackElo "2672"]
[TimeControl "180+1"]
[EndTime "14:26:33 PDT"]
[Termination "StellarChess won by resignation"]

1. e4 {[%clk 0:03:00.9]} 1... e5 {[%clk 0:02:59.7]} 2. Nf3 {[%clk 0:02:59.9]}
2... Nc6 {[%clk 0:02:59.1]} 3. Bc4 {[%clk 0:02:59.2]} 3... Nf6 {[%clk
0:02:55.3]} 4. Ng5 {[%clk 0:02:58]} 4... d5 {[%clk 0:02:55.3]} 5. exd5 {[%clk
0:02:57.6]} 5... Na5 {[%clk 0:02:56]} 6. Bd3 {[%clk 0:02:54]} 6... Qxd5 {[%clk
0:02:53.8]} 7. f3 {[%clk 0:02:42.4]} 7... h6 {[%clk 0:02:48.1]} 8. Nc3 {[%clk
0:02:40.9]} 8... Qd8 {[%clk 0:02:44.5]} 9. Nge4 {[%clk 0:02:39.3]} 9... Nc6
{[%clk 0:02:42]} 10. b3 {[%clk 0:02:37.8]} 10... Nxe4 {[%clk 0:02:34.1]} 11.
Bxe4 {[%clk 0:02:27.3]} 11... Bc5 {[%clk 0:02:29.4]} 12. Bb2 {[%clk 0:02:25.4]}
12... O-O {[%clk 0:02:28.5]} 13. Qe2 {[%clk 0:02:23.9]} 13... Nd4 {[%clk
0:02:28.5]} 14. Qc4 {[%clk 0:02:16.8]} 14... Bb6 {[%clk 0:02:23.4]} 15. O-O-O
{[%clk 0:02:16]} 15... c6 {[%clk 0:02:18.9]} 16. Kb1 {[%clk 0:02:11.3]} 16...
Be6 {[%clk 0:02:19.3]} 17. Qd3 {[%clk 0:02:09.2]} 17... f5 {[%clk 0:02:18.4]}
18. Rhe1 {[%clk 0:01:49.9]} 18... fxe4 {[%clk 0:02:11.9]} 19. Nxe4 {[%clk
0:01:48.9]} 19... Bf5 {[%clk 0:02:02.8]} 20. g4 {[%clk 0:01:46.9]} 20... Bg6
{[%clk 0:01:56.1]} 21. f4 {[%clk 0:01:33.8]} 21... Rxf4 {[%clk 0:01:53.5]} 22.
Qc4+ {[%clk 0:01:22.9]} 22... Bf7 {[%clk 0:01:49.8]} 23. Qd3 {[%clk 0:01:18.4]}
23... Rf3 {[%clk 0:01:48.4]} 24. Re3 {[%clk 0:01:13.7]} 24... Rxe3 {[%clk
0:01:38.6]} 25. dxe3 {[%clk 0:01:07.4]} 25... Ne6 {[%clk 0:01:36.9]} 26. Qe2
{[%clk 0:01:06.3]} 26... Qe7 {[%clk 0:01:23.8]} 27. Bxe5 {[%clk 0:01:05.3]}
27... Nc5 {[%clk 0:01:22.9]} 28. Nxc5 {[%clk 0:01:01.9]} 28... Qxe5 {[%clk
0:01:18.9]} 29. Nxb7 {[%clk 0:00:56.7]} 29... Qxe3 {[%clk 0:01:18.8]} 30. Qa6
{[%clk 0:00:47.6]} 30... Bg6 {[%clk 0:01:09.3]} 31. a4 {[%clk 0:00:37.6]} 31...
Qxb3+ {[%clk 0:01:07.4]} 32. Ka1 {[%clk 0:00:35.1]} 32... Qc3+ {[%clk
0:01:05.8]} 33. Ka2 {[%clk 0:00:31.7]} 33... Qxc2+ {[%clk 0:01:06.4]} 34. Ka3
{[%clk 0:00:30.9]} 34... Qxd1 {[%clk 0:01:04.7]} 0-1

[Event "Late-Titled-Tuesday-Blitz-April-16-2024"]
[Site "Chess.com"]
[Date "2024.04.16"]
[Round "3"]
[White "IsuruAlahakoon"]
[Black "Vahe_Danielyan"]
[Result "0-1"]
[WhiteElo "2436"]
[BlackElo "2643"]
[TimeControl "180+1"]
[EndTime "14:26:40 PDT"]
[Termination "Vahe_Danielyan won on time"]

1. Nf3 {[%clk 0:02:34.8]} 1... Nf6 {[%clk 0:02:57.4]} 2. d4 {[%clk 0:02:34.8]}
2... g6 {[%clk 0:02:57.7]} 3. Nc3 {[%clk 0:02:34.7]} 3... d5 {[%clk 0:02:52.8]}
4. Bf4 {[%clk 0:02:34.6]} 4... Bg7 {[%clk 0:02:40.7]} 5. e3 {[%clk 0:02:34.6]}
5... O-O {[%clk 0:02:37.5]} 6. h4 {[%clk 0:02:34.4]} 6... h5 {[%clk 0:02:28.7]}
7. Nb5 {[%clk 0:02:31.4]} 7... Na6 {[%clk 0:02:24.6]} 8. Be2 {[%clk 0:02:28.5]}
8... c6 {[%clk 0:02:20]} 9. Nc3 {[%clk 0:02:28.4]} 9... Nc7 {[%clk 0:02:13.4]}
10. Ne5 {[%clk 0:02:27.8]} 10... Ne6 {[%clk 0:02:05]} 11. Bh2 {[%clk 0:02:20.4]}
11... c5 {[%clk 0:02:03.6]} 12. Qd2 {[%clk 0:02:08.3]} 12... cxd4 {[%clk
0:01:56.9]} 13. exd4 {[%clk 0:02:09.2]} 13... Ne4 {[%clk 0:01:57.8]} 14. Nxe4
{[%clk 0:02:06.7]} 14... dxe4 {[%clk 0:01:58.7]} 15. O-O-O {[%clk 0:02:05.6]}
15... Bd7 {[%clk 0:01:31.5]} 16. g4 {[%clk 0:01:46]} 16... hxg4 {[%clk
0:01:31.5]} 17. Bxg4 {[%clk 0:01:42.9]} 17... Be8 {[%clk 0:01:26.4]} 18. h5
{[%clk 0:01:19.3]} 18... f5 {[%clk 0:01:25.2]} 19. h6 {[%clk 0:01:10.9]} 19...
Bf6 {[%clk 0:01:20.6]} 20. Be2 {[%clk 0:00:46.1]} 20... Bg5 {[%clk 0:01:18.2]}
21. h7+ {[%clk 0:00:18.4]} 21... Kh8 {[%clk 0:01:16.2]} 22. Nxg6+ {[%clk
0:00:16.5]} 22... Bxg6 {[%clk 0:01:14.3]} 23. Be5+ {[%clk 0:00:17]} 23... Rf6
{[%clk 0:01:10.8]} 24. Bxf6+ {[%clk 0:00:17]} 24... exf6 {[%clk 0:01:11.7]} 0-1

[Event "Late-Titled-Tuesday-Blitz-April-16-2024"]
[Site "Chess.com"]
[Date "2024.04.16"]
[Round "3"]
[White "Valiyev_Shahin"]
[Black "Statham_01"]
[Result "0-1"]
[WhiteElo "2405"]
[BlackElo "2613"]
[TimeControl "180+1"]
[EndTime "14:26:41 PDT"]
[Termination "Statham_01 won by checkmate"]

1. e4 {[%clk 0:03:00.9]} 1... e5 {[%clk 0:03:00.2]} 2. Nf3 {[%clk 0:03:00.8]}
2... Nf6 {[%clk 0:03:00.9]} 3. Nxe5 {[%clk 0:02:59.6]} 3... d5 {[%clk
0:03:00.5]} 4. Nf3 {[%clk 0:03:00.2]} 4... dxe4 {[%clk 0:03:00.7]} 5. Ng1 {[%clk
0:03:00.6]} 5... Bc5 {[%clk 0:03:00.3]} 6. d3 {[%clk 0:02:56.7]} 6... O-O {[%clk
0:02:53.9]} 7. Nc3 {[%clk 0:02:53.4]} 7... Re8 {[%clk 0:02:43.1]} 8. Be2 {[%clk
0:02:52.2]} 8... Nc6 {[%clk 0:02:15.1]} 9. dxe4 {[%clk 0:02:50.9]} 9... Qxd1+
{[%clk 0:02:00.6]} 10. Nxd1 {[%clk 0:02:48.4]} 10... Nb4 {[%clk 0:01:51.1]} 11.
Bd3 {[%clk 0:02:39.1]} 11... Nxe4 {[%clk 0:01:47.9]} 12. Ne2 {[%clk 0:02:39.1]}
12... Nxd3+ {[%clk 0:01:16.9]} 13. cxd3 {[%clk 0:02:38.3]} 13... Bb4+ {[%clk
0:01:14.8]} 14. Kf1 {[%clk 0:02:20.7]} 14... Nd2+ {[%clk 0:01:15.2]} 15. Bxd2
{[%clk 0:02:19.7]} 15... Bxd2 {[%clk 0:01:16.1]} 16. Ndc3 {[%clk 0:02:12.3]}
16... Bf5 {[%clk 0:01:15.9]} 17. Rd1 {[%clk 0:02:11.1]} 17... Bh6 {[%clk
0:01:13.5]} 18. h3 {[%clk 0:01:49.4]} 18... Rad8 {[%clk 0:01:12.9]} 19. d4
{[%clk 0:01:49.8]} 19... Bc2 {[%clk 0:01:10.9]} 20. Ra1 {[%clk 0:01:46.4]} 20...
Bd3 {[%clk 0:01:03.2]} 21. f3 {[%clk 0:01:33.2]} 21... Rxd4 {[%clk 0:00:56.9]}
22. Kf2 {[%clk 0:01:33.8]} 22... Bxe2 {[%clk 0:00:49.9]} 23. Nxe2 {[%clk
0:01:29.4]} 23... Rd2 {[%clk 0:00:50]} 24. Rhe1 {[%clk 0:01:29.9]} 24... Rxb2
{[%clk 0:00:47.5]} 25. g3 {[%clk 0:01:22.7]} 25... Be3+ {[%clk 0:00:44.4]} 26.
Kf1 {[%clk 0:01:22.8]} 26... Bc5 {[%clk 0:00:36.8]} 27. a3 {[%clk 0:01:19.4]}
27... h5 {[%clk 0:00:33.7]} 28. g4 {[%clk 0:01:17.3]} 28... Re3 {[%clk
0:00:32.5]} 29. Ng1 {[%clk 0:01:02.2]} 29... Rxe1+ {[%clk 0:00:32.2]} 30. Rxe1
{[%clk 0:01:03]} 30... Rf2# {[%clk 0:00:31.4]} 0-1

[Event "Late-Titled-Tuesday-Blitz-April-16-2024"]
[Site "Chess.com"]
[Date "2024.04.16"]
[Round "3"]
[White "N_I_Chess"]
[Black "RuperezA"]
[Result "0-1"]
[WhiteElo "2378"]
[BlackElo "2589"]
[TimeControl "180+1"]
[EndTime "14:26:41 PDT"]
[Termination "RuperezA won by resignation"]

1. d4 {[%clk 0:02:55.8]} 1... e6 {[%clk 0:03:00.9]} 2. c4 {[%clk 0:02:49]} 2...
Nf6 {[%clk 0:03:00.6]} 3. Nc3 {[%clk 0:02:48.7]} 3... d5 {[%clk 0:03:00.7]} 4.
cxd5 {[%clk 0:02:49.6]} 4... exd5 {[%clk 0:03:01.6]} 5. Bg5 {[%clk 0:02:48.7]}
5... c6 {[%clk 0:03:01.5]} 6. Qc2 {[%clk 0:02:40.8]} 6... Be7 {[%clk 0:03:01.2]}
7. e3 {[%clk 0:02:33]} 7... Nbd7 {[%clk 0:03:01.4]} 8. Bd3 {[%clk 0:02:33]} 8...
Nh5 {[%clk 0:03:01.2]} 9. Bxe7 {[%clk 0:02:27.9]} 9... Qxe7 {[%clk 0:03:02.1]}
10. Nge2 {[%clk 0:02:17.9]} 10... Nb6 {[%clk 0:03:00.2]} 11. O-O {[%clk
0:02:16.3]} 11... g6 {[%clk 0:02:58.2]} 12. Rae1 {[%clk 0:02:11.5]} 12... O-O
{[%clk 0:02:54.7]} 13. a3 {[%clk 0:02:06.9]} 13... Be6 {[%clk 0:02:35.2]} 14. f3
{[%clk 0:02:04.2]} 14... Nc4 {[%clk 0:02:31.5]} 15. Bxc4 {[%clk 0:01:56.5]}
15... dxc4 {[%clk 0:02:32.4]} 16. e4 {[%clk 0:01:51]} 16... f5 {[%clk
0:02:21.6]} 17. d5 {[%clk 0:01:41.9]} 17... cxd5 {[%clk 0:02:20.5]} 18. exd5
{[%clk 0:01:36.2]} 18... Bxd5 {[%clk 0:02:09.3]} 19. Nxd5 {[%clk 0:01:12.4]}
19... Qc5+ {[%clk 0:02:08]} 20. Ne3 {[%clk 0:01:03.7]} 20... Qxe3+ {[%clk
0:02:07.4]} 21. Kh1 {[%clk 0:01:04.5]} 21... Rac8 {[%clk 0:01:58.4]} 22. Nc3
{[%clk 0:00:50.3]} 22... Qc5 {[%clk 0:01:49.5]} 23. Rd1 {[%clk 0:00:44.1]} 23...
Rfd8 {[%clk 0:01:45.2]} 24. Rfe1 {[%clk 0:00:32.9]} 24... Nf4 {[%clk 0:01:43.4]}
25. Rd2 {[%clk 0:00:23.6]} 25... Nd3 {[%clk 0:01:33.5]} 26. Ree2 {[%clk
0:00:21.3]} 26... Re8 {[%clk 0:01:30.2]} 27. Nd1 {[%clk 0:00:15.3]} 27... Qd4
{[%clk 0:01:24.6]} 28. Ne3 {[%clk 0:00:14.2]} 28... Rxe3 {[%clk 0:01:22.5]} 29.
Rxd3 {[%clk 0:00:09.5]} 29... Qxd3 {[%clk 0:01:19.1]} 0-1

[Event "Late-Titled-Tuesday-Blitz-April-16-2024"]
[Site "Chess.com"]
[Date "2024.04.16"]
[Round "3"]
[White "DrVelja"]
[Black "PositionalPanther"]
[Result "1-0"]
[WhiteElo "3010"]
[BlackElo "2522"]
[TimeControl "180+1"]
[EndTime "14:26:44 PDT"]
[Termination "DrVelja won by resignation"]

1. e4 {[%clk 0:02:55.3]} 1... e6 {[%clk 0:03:00.5]} 2. Qe2 {[%clk 0:02:53.8]}
2... c5 {[%clk 0:03:00.1]} 3. Nf3 {[%clk 0:02:53.6]} 3... Nc6 {[%clk 0:03:00.6]}
4. g3 {[%clk 0:02:52.6]} 4... g6 {[%clk 0:03:00.8]} 5. Bg2 {[%clk 0:02:53]} 5...
Bg7 {[%clk 0:03:01]} 6. O-O {[%clk 0:02:53.5]} 6... d6 {[%clk 0:02:54.3]} 7. c3
{[%clk 0:02:52.4]} 7... Nge7 {[%clk 0:02:52.2]} 8. Rd1 {[%clk 0:02:52.9]} 8...
e5 {[%clk 0:02:44.3]} 9. Na3 {[%clk 0:02:52.9]} 9... O-O {[%clk 0:02:42.7]} 10.
Nc2 {[%clk 0:02:53.2]} 10... Qc7 {[%clk 0:02:33.2]} 11. d4 {[%clk 0:02:52.6]}
11... exd4 {[%clk 0:02:27.4]} 12. cxd4 {[%clk 0:02:53.5]} 12... f5 {[%clk
0:02:27.3]} 13. dxc5 {[%clk 0:02:50.5]} 13... dxc5 {[%clk 0:02:24.5]} 14. Bf4
{[%clk 0:02:49.3]} 14... Qb6 {[%clk 0:02:16.4]} 15. e5 {[%clk 0:02:04.2]} 15...
h6 {[%clk 0:02:07.7]} 16. e6 {[%clk 0:02:03.6]} 16... Qxb2 {[%clk 0:01:56.7]}
17. Bd6 {[%clk 0:01:55.6]} 17... Re8 {[%clk 0:01:39.8]} 18. Bxc5 {[%clk
0:01:44.3]} 18... Qf6 {[%clk 0:01:33.2]} 19. Nfd4 {[%clk 0:01:40.2]} 19... Qe5
{[%clk 0:01:22.1]} 20. Qxe5 {[%clk 0:01:34.9]} 20... Bxe5 {[%clk 0:01:20.5]} 21.
Rab1 {[%clk 0:01:22.9]} 21... Nxd4 {[%clk 0:00:51.1]} 22. Nxd4 {[%clk
0:01:22.7]} 22... Bxd4 {[%clk 0:00:46.4]} 23. Rxd4 {[%clk 0:01:19.1]} 23... Nc6
{[%clk 0:00:41.5]} 24. Rd6 {[%clk 0:01:18.6]} 24... Bxe6 {[%clk 0:00:35.1]} 25.
Rxb7 {[%clk 0:01:17.7]} 25... Rad8 {[%clk 0:00:20.4]} 26. Bxc6 {[%clk
0:01:15.2]} 26... Rxd6 {[%clk 0:00:18.4]} 27. Bxd6 {[%clk 0:01:16.1]} 27... Rd8
{[%clk 0:00:12.1]} 28. Be5 {[%clk 0:01:12.3]} 28... Rd1+ {[%clk 0:00:12.5]} 29.
Kg2 {[%clk 0:01:12.5]} 29... Rc1 {[%clk 0:00:12.9]} 30. Bf3 {[%clk 0:01:12.3]}
30... Rc5 {[%clk 0:00:11.8]} 31. Bd4 {[%clk 0:01:11.7]} 1-0

[Event "Late-Titled-Tuesday-Blitz-April-16-2024"]
[Site "Chess.com"]
[Date "2024.04.16"]
[Round "3"]
[White "Road2GM3000"]
[Black "volcanoexplorer"]
[Result "1-0"]
[WhiteElo "2453"]
[BlackElo "2632"]
[TimeControl "180+1"]
[EndTime "14:26:45 PDT"]
[Termination "Road2GM3000 won by resignation"]

1. d4 {[%clk 0:03:00.9]} 1... d5 {[%clk 0:02:59.2]} 2. c4 {[%clk 0:03:01.4]}
2... e6 {[%clk 0:02:59.2]} 3. Nc3 {[%clk 0:03:01.8]} 3... Bb4 {[%clk 0:02:58.7]}
4. cxd5 {[%clk 0:03:01.9]} 4... exd5 {[%clk 0:02:58.5]} 5. Nf3 {[%clk
0:03:02.7]} 5... Nf6 {[%clk 0:02:58]} 6. Bg5 {[%clk 0:03:02.8]} 6... h6 {[%clk
0:02:56.9]} 7. Bh4 {[%clk 0:03:03.4]} 7... Nbd7 {[%clk 0:02:51.4]} 8. e3 {[%clk
0:03:03.5]} 8... g5 {[%clk 0:02:47.2]} 9. Bg3 {[%clk 0:03:03.8]} 9... Nh5 {[%clk
0:02:47.7]} 10. Bd3 {[%clk 0:02:53.2]} 10... Nxg3 {[%clk 0:02:47]} 11. hxg3
{[%clk 0:02:53.3]} 11... c6 {[%clk 0:02:43.3]} 12. Qc2 {[%clk 0:02:46.2]} 12...
Nb6 {[%clk 0:02:01.3]} 13. O-O-O {[%clk 0:02:42.8]} 13... Be6 {[%clk 0:02:01.9]}
14. e4 {[%clk 0:02:37.5]} 14... Bxc3 {[%clk 0:01:48.1]} 15. bxc3 {[%clk
0:02:36.7]} 15... dxe4 {[%clk 0:01:48.8]} 16. Bxe4 {[%clk 0:02:36.8]} 16... Qe7
{[%clk 0:01:48.6]} 17. Ne5 {[%clk 0:02:22.8]} 17... O-O-O {[%clk 0:01:35]} 18.
c4 {[%clk 0:02:21.2]} 18... Qa3+ {[%clk 0:01:24.8]} 19. Kb1 {[%clk 0:02:16.9]}
19... Qa6 {[%clk 0:00:57.3]} 20. d5 {[%clk 0:02:13.9]} 20... f6 {[%clk
0:00:48.1]} 21. dxe6 {[%clk 0:01:53.3]} 21... fxe5 {[%clk 0:00:47.5]} 22. e7
{[%clk 0:01:53.5]} 22... Rde8 {[%clk 0:00:47.3]} 23. Bf5+ {[%clk 0:01:36.5]}
23... Kb8 {[%clk 0:00:47.4]} 24. Rxh6 {[%clk 0:01:35.2]} 24... Rhg8 {[%clk
0:00:29.8]} 25. Be6 {[%clk 0:01:28.8]} 25... Nc8 {[%clk 0:00:14.6]} 26. Bxg8
{[%clk 0:01:27]} 26... Rxg8 {[%clk 0:00:13.3]} 27. Rd7 {[%clk 0:01:14.3]} 27...
Qb6+ {[%clk 0:00:12.4]} 28. Qb3 {[%clk 0:01:13.5]} 28... Re8 {[%clk 0:00:07.8]}
29. Qxb6 {[%clk 0:01:10.8]} 29... axb6 {[%clk 0:00:08.7]} 30. Re6 {[%clk
0:01:09.5]} 30... b5 {[%clk 0:00:09.1]} 31. cxb5 {[%clk 0:01:09.2]} 31... cxb5
{[%clk 0:00:10]} 32. Rxe5 {[%clk 0:01:08.6]} 32... Ka8 {[%clk 0:00:09.5]} 33.
Rd8 {[%clk 0:01:06.6]} 1-0

[Event "Late-Titled-Tuesday-Blitz-April-16-2024"]
[Site "Chess.com"]
[Date "2024.04.16"]
[Round "3"]
[White "djano"]
[Black "Shtembuliak"]
[Result "1-0"]
[WhiteElo "2627"]
[BlackElo "2858"]
[TimeControl "180+1"]
[EndTime "14:26:49 PDT"]
[Termination "djano won by resignation"]

1. e4 {[%clk 0:03:00.9]} 1... d6 {[%clk 0:02:55.9]} 2. Nc3 {[%clk 0:02:59.8]}
2... g6 {[%clk 0:02:54.8]} 3. f4 {[%clk 0:02:59.8]} 3... Bg7 {[%clk 0:02:55]} 4.
Nf3 {[%clk 0:03:00.1]} 4... a6 {[%clk 0:02:49.8]} 5. a4 {[%clk 0:02:57.1]} 5...
c5 {[%clk 0:02:48.6]} 6. Bc4 {[%clk 0:02:52.6]} 6... Nc6 {[%clk 0:02:41.3]} 7.
O-O {[%clk 0:02:50.2]} 7... Na5 {[%clk 0:02:15.5]} 8. Ba2 {[%clk 0:02:41.5]}
8... c4 {[%clk 0:02:11.9]} 9. Qe1 {[%clk 0:02:28.5]} 9... Nf6 {[%clk 0:02:07.5]}
10. d3 {[%clk 0:02:23.4]} 10... cxd3 {[%clk 0:01:48.9]} 11. cxd3 {[%clk
0:02:23.1]} 11... O-O {[%clk 0:01:49]} 12. f5 {[%clk 0:02:18.1]} 12... Nc6
{[%clk 0:01:38.2]} 13. fxg6 {[%clk 0:02:11.2]} 13... hxg6 {[%clk 0:01:37.2]} 14.
Qh4 {[%clk 0:02:11.4]} 14... Ne5 {[%clk 0:00:24.1]} 15. Ng5 {[%clk 0:02:06.5]}
15... Qb6+ {[%clk 0:00:23.7]} 16. Kh1 {[%clk 0:02:03.6]} 16... Re8 {[%clk
0:00:11.6]} 17. Bf4 {[%clk 0:01:13.7]} 17... Qxb2 {[%clk 0:00:07.4]} 18. Bxe5
{[%clk 0:01:09.6]} 18... dxe5 {[%clk 0:00:07.6]} 19. Bxf7+ {[%clk 0:01:06.1]}
19... Kf8 {[%clk 0:00:08]} 20. Nd5 {[%clk 0:00:58]} 20... Rd8 {[%clk 0:00:04.1]}
21. Bxg6 {[%clk 0:00:58.3]} 21... Bd7 {[%clk 0:00:02.8]} 22. Nh7+ {[%clk
0:00:57.5]} 22... Kg8 {[%clk 0:00:02.7]} 23. Nhxf6+ {[%clk 0:00:57.6]} 23...
exf6 {[%clk 0:00:03.6]} 24. Qh7+ {[%clk 0:00:56.8]} 24... Kf8 {[%clk 0:00:03.9]}
25. Rxf6+ {[%clk 0:00:57.4]} 1-0

[Event "Late-Titled-Tuesday-Blitz-April-16-2024"]
[Site "Chess.com"]
[Date "2024.04.16"]
[Round "3"]
[White "SantoBlue"]
[Black "oskariot"]
[Result "1-0"]
[WhiteElo "3021"]
[BlackElo "2734"]
[TimeControl "180+1"]
[EndTime "14:27:00 PDT"]
[Termination "SantoBlue won on time"]

1. d4 {[%clk 0:03:00.9]} 1... Nf6 {[%clk 0:02:59.9]} 2. c4 {[%clk 0:03:01.1]}
2... c5 {[%clk 0:03:00.8]} 3. Nf3 {[%clk 0:02:59]} 3... cxd4 {[%clk 0:03:00.7]}
4. Nxd4 {[%clk 0:02:59.9]} 4... Nc6 {[%clk 0:03:01.5]} 5. g3 {[%clk 0:02:58.3]}
5... d6 {[%clk 0:03:02.1]} 6. Bg2 {[%clk 0:02:58.2]} 6... Bd7 {[%clk 0:03:02.8]}
7. O-O {[%clk 0:02:57.8]} 7... g6 {[%clk 0:03:03.4]} 8. Nc3 {[%clk 0:02:57.5]}
8... Bg7 {[%clk 0:03:03]} 9. Nxc6 {[%clk 0:02:56.9]} 9... Bxc6 {[%clk
0:03:00.6]} 10. Be3 {[%clk 0:02:47.3]} 10... O-O {[%clk 0:02:58.8]} 11. Rc1
{[%clk 0:02:46.8]} 11... Qa5 {[%clk 0:02:51.7]} 12. Bxc6 {[%clk 0:02:43.4]}
12... bxc6 {[%clk 0:02:51.7]} 13. b3 {[%clk 0:02:42.8]} 13... Ng4 {[%clk
0:02:35.8]} 14. Bd2 {[%clk 0:02:43]} 14... Qh5 {[%clk 0:02:35.4]} 15. h4 {[%clk
0:02:43.3]} 15... f5 {[%clk 0:02:26.8]} 16. Bg5 {[%clk 0:02:32]} 16... f4 {[%clk
0:02:11]} 17. Ne4 {[%clk 0:02:15.8]} 17... Rae8 {[%clk 0:01:42]} 18. gxf4 {[%clk
0:02:14.4]} 18... h6 {[%clk 0:01:39.4]} 19. Ng3 {[%clk 0:02:14.2]} 19... Nxf2
{[%clk 0:01:32.6]} 20. Nxh5 {[%clk 0:01:40.7]} 20... Nxd1 {[%clk 0:01:31.2]} 21.
Nxg7 {[%clk 0:01:40.6]} 21... Kxg7 {[%clk 0:01:32.1]} 22. Rcxd1 {[%clk 0:01:39]}
22... hxg5 {[%clk 0:01:31.4]} 23. hxg5 {[%clk 0:01:39.9]} 23... e5 {[%clk
0:00:32.8]} 24. Rxd6 {[%clk 0:01:38.4]} 24... exf4 {[%clk 0:00:32.7]} 25. Rf2
{[%clk 0:01:31.8]} 25... Re5 {[%clk 0:00:32.1]} 26. Rxc6 {[%clk 0:01:29.9]}
26... Rxg5+ {[%clk 0:00:23.7]} 27. Rg2 {[%clk 0:01:30.1]} 27... Rxg2+ {[%clk
0:00:17.3]} 28. Kxg2 {[%clk 0:01:31]} 28... Kh6 {[%clk 0:00:16.8]} 29. c5 {[%clk
0:01:30.3]} 29... Re8 {[%clk 0:00:16.3]} 30. Kf3 {[%clk 0:01:29.9]} 30... Kg5
{[%clk 0:00:15.4]} 31. Rd6 {[%clk 0:01:30.4]} 31... Re3+ {[%clk 0:00:15.7]} 32.
Kf2 {[%clk 0:01:31.1]} 32... Rc3 {[%clk 0:00:14.6]} 33. b4 {[%clk 0:01:30.1]}
33... Kf5 {[%clk 0:00:08.6]} 34. Rd5+ {[%clk 0:01:30.7]} 34... Ke4 {[%clk
0:00:04.7]} 35. Rg5 {[%clk 0:01:30.5]} 35... Ra3 {[%clk 0:00:04.9]} 36. Rxg6
{[%clk 0:01:29.5]} 36... Rxa2 {[%clk 0:00:05.5]} 37. c6 {[%clk 0:01:29.9]} 37...
a6 {[%clk 0:00:02.4]} 38. Rg5 {[%clk 0:01:26.1]} 38... f3 {[%clk 0:00:03]} 39.
c7 {[%clk 0:01:25]} 39... Rxe2+ {[%clk 0:00:02.5]} 40. Kf1 {[%clk 0:01:25.7]}
40... Rc2 {[%clk 0:00:01.8]} 41. Rc5 {[%clk 0:01:26.3]} 1-0